fUSD/lending_fUSD_20250128
["ID","MTS","AMOUNT","RATE_DAILY","PERIOD"]
[350666644,1738044643802,-500.0,0.00019999,2]
[350666645,1738044643812,-500.0,0.00019999,2]
[350666646,1738044643822,-575.88188464,0.00019999,2]
[350666647,1738044643832,-500.0,0.00019999,2]
[350666648,1738044643841,-503.44741615,0.00019999,2]
[350666649,1738044643851,-500.0,0.00019999,2]
[350666650,1738044643860,-264.2780309,0.00019999,2]
[350666651,1738044643869,-502.55635813,0.00019999,2]
[350666652,1738044643878,-500.0,0.00019999,2]
[350666653,1738044643887,-500.0,0.00019999,2]
[350666654,1738044643897,-500.92641914,0.00019999,2]
[350666655,1738044643906,-500.0,0.00019999,2]
[350666656,1738044643918,-500.0,0.00019999,2]
[350666657,1738044643927,-502.65337989,0.00019999,2]
[350666658,1738044643936,-500.0,0.00019999,2]
[350666659,1738044643946,-500.0,0.00019999,2]
[350666660,1738044643956,-504.35466845,0.00019999,2]
[350666661,1738044643965,-500.0,0.00019999,2]
[350666662,1738044643975,-500.0,0.00019999,2]
[350666663,1738044643984,-506.59275362,0.00019999,2]
[350666664,1738044643994,-500.0,0.00019999,2]
[350666665,1738044644003,-500.0,0.00019999,2]
[350666666,1738044644012,-506.33656741,0.00019999,2]
[350666667,1738044644022,-500.0,0.00019999,2]
[350666668,1738044644031,-500.0,0.00019999,2]
[350666669,1738044644040,-508.26215518,0.00019999,2]
[350666670,1738044644049,-500.0,0.00019999,2]
[350666671,1738044644058,-500.0,0.00019999,2]
[350666672,1738044644067,-504.11456352,0.00019999,2]
[350666673,1738044644076,-500.0,0.00019999,2]
[350666674,1738044644085,-500.0,0.00019999,2]
[350666675,1738044644094,-495.0,0.00019999,2]
[350666676,1738044644103,-500.0,0.00019999,2]
[350666677,1738044644112,-500.0,0.00019999,2]
[350666678,1738044644121,-504.23362156,0.00019999,2]
[350666679,1738044644130,-500.0,0.00019999,2]
[350666680,1738044644139,-500.0,0.00019999,2]
[350666681,1738044644147,-514.59398084,0.00019999,2]
[350666682,1738044644156,-500.0,0.00019999,2]
[350666683,1738044644166,-500.0,0.00019999,2]
[350666684,1738044644175,-500.0,0.00019999,2]
[350666685,1738044644184,-500.0,0.00019999,2]
[350666686,1738044644193,-500.0,0.00019999,2]
[350666687,1738044644202,-500.0,0.00019999,2]
[350666688,1738044644211,-500.0,0.00019999,2]
[350666689,1738044644220,-500.0,0.00019999,2]
[350666690,1738044644229,-500.0,0.00019999,2]
[350666691,1738044644238,-508.91007707,0.00019999,2]
[350666692,1738044644247,-500.0,0.00019999,2]
[350666693,1738044644256,-621.90498917,0.00019999,2]
[350666694,1738044644265,-500.0,0.00019999,2]
[350666695,1738044644275,-500.0,0.00019999,2]
[350666696,1738044644283,-501.8146013,0.00019999,2]
[350666697,1738044644292,-500.0,0.00019999,2]
[350666698,1738044644302,-500.0,0.00019999,2]
[350666699,1738044644311,-500.0,0.00019999,2]
[350666700,1738044644321,-500.0,0.00019999,2]
[350666701,1738044644330,-500.0,0.00019999,2]
[350666702,1738044644339,-500.0,0.00019999,2]
[350666703,1738044644349,-500.0,0.00019999,2]
[350666704,1738044644358,-503.90904871,0.00019999,2]
[350666705,1738044644367,-223.70594961,0.00019999,2]
[350666706,1738044644376,-276.18476088,0.00019999,2]
[350666707,1738044644385,-322.57486073,0.00019999,2]
[350666708,1738044644395,-500.0,0.00019999,2]
[350666709,1738044644403,-500.0,0.00019999,2]
[350666710,1738044644414,-580.87794315,0.00019999,2]
[350666711,1738044644423,-500.0,0.00019999,2]
[350666712,1738044644432,-509.36413912,0.00019999,2]
[350666713,1738044644441,-500.0,0.00019999,2]
[350666714,1738044644450,-500.0,0.00019999,2]
[350666715,1738044644459,-503.9153114,0.00019999,2]
[350666716,1738044644469,-500.0,0.00019999,2]
[350666717,1738044644478,-515.06264462,0.00019999,2]
[350666718,1738044644487,-500.0,0.00019999,2]
[350666719,1738044644496,-500.0,0.00019999,2]
[350666720,1738044644505,-502.14418567,0.00019999,2]
[350666721,1738044644515,-500.0,0.00019999,2]
[350666722,1738044644524,-500.0,0.00019999,2]
[350666723,1738044644533,-503.64428668,0.00019999,2]
[350666724,1738044644542,-500.0,0.00019999,2]
[350666725,1738044644551,-500.0,0.00019999,2]
[350666726,1738044644561,-503.86461351,0.00019999,2]
[350666727,1738044644570,-500.0,0.00019999,2]
[350666728,1738044644580,-500.0,0.00019999,2]
[350666729,1738044644589,-500.0,0.00019999,2]
[350666730,1738044644598,-522.61820221,0.00019999,2]
[350666731,1738044644607,-500.0,0.00019999,2]
[350666732,1738044644617,-500.0,0.00019999,2]
[350666733,1738044644626,-505.24873592,0.00019999,2]
[350666734,1738044644635,-500.0,0.00019999,2]
[350666735,1738044644645,-500.0,0.00019999,2]
[350666736,1738044644654,-506.70836238,0.00019999,2]
[350666737,1738044644664,-500.0,0.00019999,2]
[350666738,1738044644673,-500.0,0.00019999,2]
[350666739,1738044644682,-500.0,0.00019999,2]
[350666740,1738044644692,-500.0,0.00019999,2]
[350666741,1738044644701,-503.68873832,0.00019999,2]
[350666742,1738044644710,-503.13502785,0.00019999,2]
[350666743,1738044644719,-604.90935379,0.00019999,2]
[350666744,1738044644728,-500.0,0.00019999,2]
[350666745,1738044644740,-500.0,0.00019999,2]
[350666746,1738044644749,-500.0,0.00019999,2]
[350666747,1738044644758,-500.0,0.00019999,2]
[350666748,1738044644767,-500.0,0.00019999,2]
[350666749,1738044644777,-500.0,0.00019999,2]
[350666750,1738044644787,-495.99606941,0.00019999,2]
[350666751,1738044644795,-508.52480666,0.00019999,2]
[350666752,1738044644805,-500.0,0.00019999,2]
[350666753,1738044644817,-500.0,0.00019999,2]
[350666754,1738044644826,-500.0,0.00019999,2]
[350666755,1738044644835,-623.15000106,0.00019999,2]
[350666756,1738044644845,-500.0,0.00019999,2]
[350666757,1738044644854,-500.0,0.00019999,2]
[350666758,1738044644863,-503.18412047,0.00019999,2]
[350666759,1738044644872,-500.0,0.00019999,2]
[350666760,1738044644881,-623.59833168,0.00019999,2]
[350666761,1738044644890,-500.0,0.00019999,2]
[350666762,1738044644899,-558.31910282,0.00019999,2]
[350666763,1738044644908,-500.0,0.00019999,2]
[350666764,1738044644918,-500.0,0.00019999,2]
[350666765,1738044644927,-506.44117568,0.00019999,2]
[350666766,1738044644935,-500.0,0.00019999,2]
[350666767,1738044644945,-521.21265712,0.00019999,2]
[350666768,1738044644954,-500.0,0.00019999,2]
[350666769,1738044644963,-500.0,0.00019999,2]
[350666770,1738044644972,-501.44793679,0.00019999,2]
[350666771,1738044644981,-500.0,0.00019999,2]
[350666772,1738044644990,-402.6384051,0.00019999,2]
[350666773,1738044644999,-500.0,0.00019999,2]
[350666774,1738044645008,-500.0,0.00019999,2]
[350666775,1738044645017,-500.0,0.00019999,2]
[350666776,1738044645026,-500.0,0.00019999,2]
[350666777,1738044645035,-500.0,0.00019999,2]
[350666778,1738044645045,-251.99069436,0.00019999,2]
[350666779,1738044645054,-500.0,0.00019999,2]
[350666780,1738044645063,-500.0,0.00019999,2]
[350666781,1738044645072,-512.21365601,0.00019999,2]
[350666782,1738044645082,-500.0,0.00019999,2]
[350666783,1738044645091,-500.0,0.00019999,2]
[350666784,1738044645099,-500.0,0.00019999,2]
[350666785,1738044645109,-500.0,0.00019999,2]
[350666786,1738044645118,-500.0,0.00019999,2]
[350666787,1738044645127,-500.0,0.00019999,2]
[350666788,1738044645136,-500.0,0.00019999,2]
[350666789,1738044645145,-426.11316423,0.00019999,2]
[350666790,1738044645154,-500.0,0.00019999,2]
[350666791,1738044645165,-500.0,0.00019999,2]
[350666792,1738044645174,-508.47595058,0.00019999,2]
[350666793,1738044645183,-500.0,0.00019999,2]
[350666794,1738044645192,-500.0,0.00019999,2]
[350666795,1738044645202,-500.0,0.00019999,2]
[350666796,1738044645211,-507.84261323,0.00019999,2]
[350666797,1738044645220,-500.0,0.00019999,2]
[350666798,1738044645230,-500.0,0.00019999,2]
[350666799,1738044645240,-504.39813623,0.00019999,2]
[350666800,1738044645249,-500.0,0.00019999,2]
[350666801,1738044645258,-500.0,0.00019999,2]
[350666802,1738044645267,-501.7174633,0.00019999,2]
[350666803,1738044645276,-500.0,0.00019999,2]
[350666804,1738044645285,-500.0,0.00019999,2]
[350666805,1738044645294,-500.0,0.00019999,2]
[350666806,1738044645304,-500.0,0.00019999,2]
[350666807,1738044645313,-316.42953491,0.00019999,2]
[350666808,1738044645323,-500.0,0.00019999,2]
[350666809,1738044645333,-504.16718576,0.00019999,2]
[350666810,1738044645343,-500.0,0.00019999,2]
[350666811,1738044645352,-500.61542923,0.00019999,2]
[350666812,1738044645362,-500.0,0.00019999,2]
[350666813,1738044645372,-500.90790522,0.00019999,2]
[350666814,1738044645381,-500.0,0.00019999,2]
[350666815,1738044645391,-511.09823981,0.00019999,2]
[350666816,1738044645400,-500.0,0.00019999,2]
[350666817,1738044645410,-501.46155378,0.00019999,2]
[350666818,1738044645419,-606.13453086,0.00019999,2]
[350666819,1738044645428,-500.0,0.00019999,2]
[350666820,1738044645437,-504.00760062,0.00019999,2]
[350666821,1738044645447,-500.0,0.00019999,2]
[350666822,1738044645456,-507.6702408,0.00019999,2]
[350666823,1738044645465,-500.0,0.00019999,2]
[350666824,1738044645475,-500.0,0.00019999,2]
[350666825,1738044645484,-500.0,0.00019999,2]
[350666826,1738044645493,-554.76498728,0.00019999,2]
[350666827,1738044645502,-500.0,0.00019999,2]
[350666828,1738044645511,-166.4748244,0.00019999,2]
[350666830,1738044645521,-500.0,0.00019999,2]
[350666832,1738044645530,-500.0,0.00019999,2]
[350666833,1738044645539,-500.0,0.00019999,2]
[350666835,1738044645549,-500.0,0.00019999,2]
[350666836,1738044645558,-500.0,0.00019999,2]
[350666837,1738044645567,-500.0,0.00019999,2]
[350666838,1738044645577,-500.0,0.00019999,2]
[350666840,1738044645586,-364.96,0.00019999,2]
[350666841,1738044645595,-500.0,0.00019999,2]
[350666842,1738044645604,-502.71539319,0.00019999,2]
[350666843,1738044645613,-500.0,0.00019999,2]
[350666844,1738044645622,-499.03975628,0.00019999,2]
[350666845,1738044645631,-500.0,0.00019999,2]
[350666846,1738044645640,-500.0,0.00019999,2]
[350666847,1738044645649,-500.0,0.00019999,2]
[350666848,1738044645658,-500.0,0.00019999,2]
[350666849,1738044645668,-500.0,0.00019999,2]
[350666850,1738044645678,-440.40170655,0.00019999,2]
[350666851,1738044645687,-500.0,0.00019999,2]
[350666852,1738044645697,-500.0,0.00019999,2]
[350666853,1738044645706,-576.35668265,0.00019999,2]
[350666854,1738044645715,-193.28610937,0.00019999,2]
[350666855,1738044645725,-500.0,0.00019999,2]
[350666856,1738044645736,-430.69482973,0.00019999,2]
[350666857,1738044645746,-500.0,0.00019999,2]
[350666858,1738044645755,-500.0,0.00019999,2]
[350666859,1738044645764,-500.0,0.00019999,2]
[350666860,1738044645774,-500.0,0.00019999,2]
[350666861,1738044645783,-502.57664208,0.00019999,2]
[350666862,1738044645793,-187.87,0.00019999,2]
[350666863,1738044645804,-806.22,0.00019999,2]
[350666864,1738044645816,-806.22,0.00019999,2]
[350666865,1738044645826,-806.22,0.00019999,2]
[350666866,1738044645836,-806.22,0.00019999,2]
[350666867,1738044645846,-806.22,0.00019999,2]
[350666868,1738044645856,-806.22,0.00019999,2]
[350666869,1738044645866,-806.22,0.00019999,2]
[350666870,1738044645876,-806.22,0.00019999,2]
[350666871,1738044645885,-806.22,0.00019999,2]
[350666872,1738044645895,-806.22,0.00019999,2]
[350666873,1738044645904,-806.22,0.00019999,2]
[350666874,1738044645915,-806.22,0.00019999,2]
[350666875,1738044645924,-806.22,0.00019999,2]
[350666876,1738044645933,-806.22,0.00019999,2]
[350666877,1738044645943,-806.22,0.00019999,2]
[350666878,1738044645952,-806.22,0.00019999,2]
[350666879,1738044645962,-806.22,0.00019999,2]
[350666880,1738044645971,-806.22,0.00019999,2]
[350666881,1738044645980,-806.22,0.00019999,2]
[350666882,1738044645989,-806.22,0.00019999,2]
[350666883,1738044645998,-806.22,0.00019999,2]
[350666884,1738044646007,-806.31,0.00019999,2]
[350666885,1738044646017,-514.00015073,0.00019999,2]
[350666886,1738044646026,-747.99,0.00019999,2]
[350666887,1738044646035,-747.99,0.00019999,2]
[350666888,1738044646044,-747.99,0.00019999,2]
[350666889,1738044646054,-747.99,0.00019999,2]
[350666890,1738044646063,-747.99,0.00019999,2]
[350666891,1738044646072,-747.99,0.00019999,2]
[350666892,1738044646082,-747.99,0.00019999,2]
[350666893,1738044646091,-747.99,0.00019999,2]
[350666894,1738044646100,-747.99,0.00019999,2]
[350666895,1738044646109,-500.0,0.00019999,2]
[350666896,1738044646118,-747.99,0.00019999,2]
[350666897,1738044646127,-500.0,0.00019999,2]
[350666898,1738044646136,-747.99,0.00019999,2]
[350666899,1738044646145,-497.35601719,0.00019999,2]
[350666900,1738044646154,-747.99,0.00019999,2]
[350666901,1738044646163,-747.99,0.00019999,2]
[350666902,1738044646173,-747.99,0.00019999,2]
[350666903,1738044646182,-747.99,0.00019999,2]
[350666904,1738044646192,-63.84929224,0.00019999,2]
[350666905,1738044646471,-684.14070776,0.00019999,2]
[350666906,1738044646482,-747.99,0.00019999,2]
[350666907,1738044646492,-747.99,0.00019999,2]
[350666908,1738044646502,-747.99,0.00019999,2]
[350666909,1738044646512,-747.99,0.00019999,2]
[350666910,1738044646522,-500.0,0.00019999,2]
[350666911,1738044646532,-747.99,0.00019999,2]
[350666912,1738044646542,-500.0,0.00019999,2]
[350666913,1738044646552,-748.1,0.00019999,2]
[350666914,1738044646561,-375.3839211,0.00019999,2]
[350666915,1738044646571,-569.84,0.00019999,2]
[350666916,1738044646580,-193.51261901,0.00019999,2]
[350666917,1738044646613,-376.32738099,0.00019999,2]
[350666918,1738044646622,-9.07762901,0.00019999,2]
[350666919,1738044646650,-434.22145291,0.00019999,2]
[350666920,1738044646677,-126.54091808,0.00019999,2]
[350666921,1738044646686,-569.84,0.00019999,2]
[350666922,1738044646695,-569.84,0.00019999,2]
[350666923,1738044646704,-159.01535702,0.00019999,2]
[350666927,1738045456346,161.94,0.00010137,2]
[350666931,1738045565666,200.0,0.00011897,2]
[350666932,1738045566067,200.0,0.00011848,2]
[350666933,1738045566369,200.0,0.00011843,2]
[350666934,1738045566673,200.0,0.00011847,2]
[350666940,1738045710916,226.35761663,9.828e-05,2]
[350666961,1738045831982,-550.0,0.00013,2]
[350666962,1738045831991,-150.0,0.00014,2]
[350666963,1738045832000,-150.0,0.000143,2]
[350666964,1738045832009,-600.0,0.00015,2]
[350666965,1738045832018,-4326.48522051,0.00015196,2]
[350666966,1738045832027,-150.0,0.00015196,2]
[350666967,1738045832036,-694.77,0.0001597,2]
[350666968,1738045832045,-1529.5006086,0.000162,2]
[350666969,1738045832054,-150.0,0.00016299,2]
[350666970,1738045832063,-296.76530391,0.00016299,2]
[350666971,1738045832072,-54443.17141187,0.00016299,2]
[350666981,1738045837982,-1555.567165,0.00016299,2]
[350666982,1738045837994,-15019.2149519,0.00016299,2]
[350666995,1738045846054,-2345.275883,0.00016299,2]
[350666996,1738045846282,-451.84882546,0.00016299,2]
[350666999,1738045895848,1343.0,0.00016,29]
[350667002,1738046299421,173.9,0.00010137,2]
[350667026,1738047032190,-761.26,0.00013617,2]
[350667027,1738047032200,-150.0,0.00014329,2]
[350667028,1738047032209,-150.0,0.00014851,2]
[350667029,1738047032218,-150.0,0.00014979,2]
[350667030,1738047032227,-155.0,0.0001504,2]
[350667031,1738047032237,-300.0,0.000151,2]
[350667032,1738047032246,-1127.26,0.00015351,2]
[350667033,1738047032255,-200.0,0.00015364,2]
[350667034,1738047032264,-289.13739247,0.00015366,2]
[350667035,1738047032273,-855.39,0.00015466,2]
[350667036,1738047032282,-250.0,0.00015647,2]
[350667037,1738047032291,-171.57,0.0001576,2]
[350667038,1738047032300,-1500.0,0.0001576,2]
[350667039,1738047032309,-300.0,0.00015764,2]
[350667040,1738047032317,-9628.3826075,0.00015765,2]
[350667041,1738047032332,-662.7731838,0.00015765,2]
[350667042,1738047032343,-1607.94889829,0.00015765,2]
[350667043,1738047032354,-288.4,0.00015765,2]
[350667044,1738047032460,-981.97470644,0.00015765,2]
[350667045,1738047032470,-886.96882974,0.00015765,2]
[350667046,1738047032496,-8512.7,0.00015765,2]
[350667580,1738047038134,-9694.69177423,0.00015765,2]
[350667582,1738047038143,-761.26,0.00015881,2]
[350667584,1738047038152,-150.0,0.00015948,2]
[350667586,1738047038162,-23900.0,0.00015949,2]
[350667588,1738047038171,-2163.575,0.00015973,2]
[350667590,1738047038180,-176.027,0.00015973,2]
[350667592,1738047038189,-462.82,0.0001608,2]
[350667594,1738047038198,-200.0,0.000161,2]
[350667596,1738047038208,-174.54,0.0001618,2]
[350667598,1738047038217,-164.29648912,0.00016199,2]
[350667600,1738047038226,-1376.55054774,0.000162,2]
[350667602,1738047038235,-11962.0,0.00016299,4]
[350667604,1738047038245,-2582.13068,0.00016299,2]
[350667606,1738047038254,-296.76530391,0.00016299,2]
[350667608,1738047038263,-1448292.12514693,0.000163,2]
[350667610,1738047038272,-722087.29449289,0.000163,4]
[350667612,1738047038281,-1000.0,0.000165,2]
[350667614,1738047038290,-1000.0,0.000165,2]
[350667616,1738047038299,-1376.55054767,0.00016611,2]
[350667618,1738047038308,-212.43,0.00016658,30]
[350667620,1738047038317,-1000.0,0.000169,2]
[350667622,1738047038327,-168.02,0.00016915,2]
[350667624,1738047038336,-241.62,0.00016922,2]
[350667626,1738047038345,-6644.75,0.00016922,2]
[350667628,1738047038354,-2500.0,0.00016937,2]
[350667630,1738047038363,-650.0,0.00017,2]
[350667632,1738047038372,-1588.0,0.00017,2]
[350667634,1738047038382,-1376.55054767,0.00017022,2]
[350667636,1738047038390,-1333.68,0.00017036,2]
[350667638,1738047038399,-8253.59,0.00017037,2]
[350667640,1738047038408,-4381.26,0.00017139,2]
[350667642,1738047038417,-1000.0,0.00017146,2]
[350667644,1738047038427,-4580.0,0.000173,2]
[350667645,1738047038436,-500.0,0.00017319,2]
[350667648,1738047038445,-500.0,0.00017319,2]
[350667649,1738047038454,-393.43,0.00017328,2]
[350667651,1738047038464,-1376.55054767,0.00017433,2]
[350667654,1738047038473,-1376.55054767,0.00017844,2]
[350667656,1738047038484,-8253.59,0.00017888,2]
[350667658,1738047038496,-438.99,0.00018082,2]
[350667660,1738047038505,-1547.35,0.00018082,2]
[350667662,1738047038514,-774.41,0.00018082,2]
[350667664,1738047038524,-1604.08,0.00018082,2]
[350667666,1738047038534,-462.82,0.0001809,2]
[350667668,1738047038543,-761.26,0.00018145,2]
[350667669,1738047038552,-1376.55054767,0.00018256,2]
[350667671,1738047038561,-1000.0,0.000184,2]
[350667673,1738047038570,-152.74738017,0.000185,2]
[350667675,1738047038580,-253.69,0.00018581,2]
[350667677,1738047038589,-535.30958887,0.0001863,2]
[350667679,1738047038598,-513.98398599,0.0001863,2]
[350667681,1738047038607,-502.74519791,0.0001863,2]
[350667683,1738047038617,-503.92872714,0.0001863,2]
[350667685,1738047038626,-514.45082084,0.0001863,2]
[350667687,1738047038635,-502.83166531,0.0001863,2]
[350667689,1738047038644,-506.69886083,0.0001863,2]
[350667691,1738047038653,-502.47408228,0.0001863,2]
[350667693,1738047038662,-510.98552496,0.0001863,2]
[350667695,1738047038671,-517.38761302,0.0001863,2]
[350667697,1738047038680,-507.87915567,0.0001863,2]
[350667699,1738047038689,-510.67321001,0.0001863,2]
[350667701,1738047038699,-500.0,0.0001863,2]
[350667703,1738047038709,-500.0,0.0001863,2]
[350667706,1738047038718,-265.9802968,0.0001863,2]
[350667707,1738047038727,-500.0,0.0001863,2]
[350667709,1738047038737,-508.71235723,0.0001863,2]
[350667712,1738047038746,-642.72,0.0001863,2]
[350667713,1738047038755,-642.72,0.0001863,2]
[350667715,1738047038764,-642.72,0.0001863,2]
[350667717,1738047038773,-642.72,0.0001863,2]
[350667719,1738047038782,-642.72,0.0001863,2]
[350667721,1738047038791,-642.72,0.0001863,2]
[350667723,1738047038800,-642.72,0.0001863,2]
[350667725,1738047038809,-642.72,0.0001863,2]
[350667727,1738047038817,-642.72,0.0001863,2]
[350667729,1738047038827,-511.34169992,0.0001863,2]
[350667731,1738047038836,-500.0,0.0001863,2]
[350667733,1738047038845,-500.0,0.0001863,2]
[350667735,1738047038853,-500.0,0.0001863,2]
[350667737,1738047038862,-500.0,0.0001863,2]
[350667739,1738047038870,-500.0,0.0001863,2]
[350667741,1738047038879,-500.0,0.0001863,2]
[350667743,1738047038888,-500.0,0.0001863,2]
[350667745,1738047038897,-500.0,0.0001863,2]
[350667747,1738047038906,-500.0,0.0001863,2]
[350667749,1738047038914,-500.0,0.0001863,2]
[350667751,1738047038923,-626.85245263,0.0001863,2]
[350667753,1738047038932,-500.0,0.0001863,2]
[350667755,1738047038941,-500.0,0.0001863,2]
[350667757,1738047038950,-502.85883298,0.0001863,2]
[350667759,1738047038959,-500.0,0.0001863,2]
[350667761,1738047038967,-500.0,0.0001863,2]
[350667763,1738047038976,-500.0,0.0001863,2]
[350667765,1738047038985,-500.0,0.0001863,2]
[350667767,1738047038993,-500.0,0.0001863,2]
[350667769,1738047039002,-500.0,0.0001863,2]
[350667771,1738047039011,-158.5,0.0001863,2]
[350667773,1738047039020,-500.0,0.0001863,2]
[350667774,1738047039029,-500.0,0.0001863,2]
[350667776,1738047039037,-500.0,0.0001863,2]
[350667778,1738047039046,-500.0,0.0001863,2]
[350667780,1738047039055,-500.0,0.0001863,2]
[350667782,1738047039064,-500.0,0.0001863,2]
[350667784,1738047039073,-502.85,0.0001863,2]
[350667786,1738047039082,-500.0,0.0001863,2]
[350667788,1738047039090,-500.0,0.0001863,2]
[350667790,1738047039099,-500.0,0.0001863,2]
[350667792,1738047039108,-500.0,0.0001863,2]
[350667794,1738047039116,-500.0,0.0001863,2]
[350667795,1738047039125,-500.0,0.0001863,2]
[350667796,1738047039134,-500.0,0.0001863,2]
[350667797,1738047039143,-500.0,0.0001863,2]
[350667798,1738047039151,-500.0,0.0001863,2]
[350667799,1738047039160,-500.0,0.0001863,2]
[350667800,1738047039169,-500.0,0.0001863,2]
[350667801,1738047039178,-500.0,0.0001863,2]
[350667802,1738047039188,-500.0,0.0001863,2]
[350667803,1738047039197,-500.0,0.0001863,2]
[350667804,1738047039207,-500.0,0.0001863,2]
[350667805,1738047039216,-500.0,0.0001863,2]
[350667807,1738047039225,-500.0,0.0001863,2]
[350667808,1738047039235,-500.0,0.0001863,2]
[350667809,1738047039244,-500.0,0.0001863,2]
[350667810,1738047039253,-619.48,0.0001863,2]
[350667811,1738047039263,-619.48,0.0001863,2]
[350667812,1738047039271,-619.48,0.0001863,2]
[350667813,1738047039280,-619.48,0.0001863,2]
[350667814,1738047039289,-619.48,0.0001863,2]
[350667815,1738047039298,-619.48,0.0001863,2]
[350667816,1738047039307,-619.48,0.0001863,2]
[350667817,1738047039316,-619.48,0.0001863,2]
[350667818,1738047039325,-619.48,0.0001863,2]
[350667819,1738047039334,-500.0,0.0001863,2]
[350667820,1738047039344,-500.0,0.0001863,2]
[350667821,1738047039353,-500.0,0.0001863,2]
[350667822,1738047039362,-500.0,0.0001863,2]
[350667823,1738047039371,-500.0,0.0001863,2]
[350667824,1738047039381,-500.0,0.0001863,2]
[350667825,1738047039390,-500.0,0.0001863,2]
[350667826,1738047039398,-500.0,0.0001863,2]
[350667827,1738047039407,-500.0,0.0001863,2]
[350667828,1738047039416,-500.0,0.0001863,2]
[350667829,1738047039425,-500.0,0.0001863,2]
[350667830,1738047039434,-500.0,0.0001863,2]
[350667831,1738047039444,-505.14292695,0.0001863,2]
[350667832,1738047039453,-305.10667391,0.0001863,2]
[350667833,1738047039462,-1376.55054767,0.00018667,2]
[350667834,1738047039472,-25867.21507104,0.000187,2]
[350667835,1738047039481,-1000.0,0.000187,2]
[350667836,1738047039495,-8253.59,0.0001874,2]
[350667837,1738047039504,-1604.08,0.00018751,2]
[350667838,1738047039513,-152.74738017,0.00018762,2]
[350667839,1738047039522,-1051.14888142,0.00018795,2]
[350667840,1738047039532,-500.0,0.00018876,2]
[350667841,1738047039541,-500.0,0.00018876,2]
[350667842,1738047039550,-619.48,0.00018876,2]
[350667843,1738047039559,-500.0,0.00018876,2]
[350667844,1738047039569,-1051.14888142,0.00018877,2]
[350667845,1738047039578,-2500.0,0.000189,2]
[350667846,1738047039587,-1051.14888142,0.00018959,2]
[350667847,1738047039596,-697.0,0.00018966,2]
[350667848,1738047039605,-500.0,0.00018999,2]
[350667849,1738047039614,-642.72,0.00018999,2]
[350667850,1738047039623,-500.0,0.00018999,2]
[350667851,1738047039632,-500.0,0.00018999,2]
[350667852,1738047039641,-500.0,0.00018999,2]
[350667853,1738047039650,-500.0,0.00018999,2]
[350667854,1738047039660,-619.48,0.00018999,2]
[350667855,1738047039669,-500.0,0.00018999,2]
[350667856,1738047039679,-14000.0,0.00019,2]
[350667857,1738047039688,-700.0,0.00019,2]
[350667858,1738047039698,-269298.53329929,0.00019,2]
[350667859,1738047039707,-212.922,0.00019,2]
[350667860,1738047039717,-212.922,0.00019,2]
[350667861,1738047039726,-151.0,0.00019,2]
[350667862,1738047039737,-151.0,0.00019,2]
[350667863,1738047039747,-151.0,0.00019,2]
[350667864,1738047039756,-3856.9,0.00019,2]
[350667865,1738047039767,-151.0,0.00019,2]
[350667866,1738047039776,-415.55379,0.00019,2]